[Event "DFMMLV 2019"]
[Site "Braunfels"]
[Date "2019.06.21"]
[Round "3.22"]
[White "Mundt, Alexandra"]
[Black "Werner, Rosalie"]
[Result "1/2-1/2"]
[ECO "A14"]
[WhiteElo "1797"]
[BlackElo "1610"]
[Annotator "NA"]
[PlyCount "89"]
[EventDate "2019.06.20"]
[EventType "team-tourn"]
[EventCountry "GER"]
[SourceTitle "playchess.com"]
[Source "ChessBase"]
[SourceQuality "1"]
[WhiteTeam "Schleswig Holstein"]
[BlackTeam "Hessen 1"]
[TimeControl "40/5400+30:1800+30"]

1. Nf3 {[%emt 0:00:00]} Nf6 {[%emt 0:00:59]} 2. c4 {[%emt 0:00:00]} e6 {[%emt 0:00:30]} 3. b3 {[%emt 0:00:24]} d5 {[%emt 0:00:31]} 4. Bb2 {[%emt 0:00:24]} Be7 {[%emt 0:00:42]} 5. g3 {[%emt 0:00:09]} O-O {[%emt 0:02:56]} 6. Bg2 {[%emt 0:00:12]} c5 {[%emt 0:07:26]} 7. O-O {[%emt 0:00:36]} Nc6 {[%emt 0:00:46]} 8. Qc2 {[%emt 0:05:11]} h6 {[%emt 0:03:51]} 9. Rd1 {[%emt 0:03:14]} d4 {[%emt 0:01:13]} 10. a3 {[%emt 0:01:42]} a5 {[%emt 0:00:23]} 11. d3 {[%emt 0:01:51]} Qc7 {[%emt 0:01:10]} 12. e3 {[%emt 0:03:01]} e5 {[%emt 0:00:55]} 13. Nbd2 {[%emt 0:02:42]} Bg4 {[%emt 0:02:38]} 14. Re1 {[%emt 0:02:46]} Rad8 {[%emt 0:04:17]} 15. Rad1 {[%emt 0:08:24]} Rfe8 {[%emt 0:04:19]} 16. h3 {[%emt 0:05:38]} Bh5 {[%emt 0:02:01]} 17. Nf1 {[%emt 0:08:33]} Bg6 {[%emt 0:10:10]} 18. N3h2 {[%emt 0:09:16]} Bd6 {[%emt 0:01:51]} 19. exd4 {[%emt 0:02:44]} exd4 {[%emt 0:00:47]} 20. Qd2 {[%emt 0:02:40]} b6 {[%emt 0:03:30]} 21. Bc1 {[%emt 0:01:21]} Ne5 {[%emt 0:04:41]} 22. Qc2 {[%emt 0:02:48]} Ned7 {[%emt 0:07:49]} 23. Nf3 {[%emt 0:04:23]} Nf8 {[%emt 0:00:46]} 24. Bd2 {[%emt 0:01:36]} Ne6 {[%emt 0:01:05]} 25. Rb1 {[%emt 0:02:58]} Rb8 {[%emt 0:05:57]} 26. Rb2 {[%emt 0:09:14]} Bh7 {[%emt 0:02:05]} 27. Reb1 {[%emt 0:00:52]} Nf8 {[%emt 0:05:40]} 28. N3h2 {[%emt 0:03:28]} g5 {[%emt 0:03:16]} 29. b4 {[%emt 0:03:36]} axb4 {[%emt 0:01:05]} 30. axb4 {[%emt 0:00:05]} Ng6 {[%emt 0:02:59]} 31. bxc5 {[%emt 0:01:35]} bxc5 {[%emt 0:00:12]} 32. Rb7 {[%emt 0:05:01]} Rxb7 {[%emt 0:02:02]} 33. Rxb7 {[%emt 0:00:05]} Qd8 {[%emt 0:03:01]} 34. Nf3 {[%emt 0:01:57]} Re7 {[%emt 0:06:57]} 35. Rb5 {[%emt 0:01:46]} Nd7 {[%emt 0:02:33]} 36. N1h2 {[%emt 0:04:09]} Nge5 {[%emt 0:00:41]} 37. Ne1 {[%emt 0:01:40]} Nf6 {[%emt 0:04:18]} 38. Nhf3 {[%emt 0:01:15]} Nxf3+ {[%emt 0:01:25]} 39. Nxf3 {[%emt 0:00:08]} Re2 {[%emt 0:00:54]} 40. Bf1 {[%emt 0:00:24]} Re6 {[%emt 0:00:31]} 41. Qa2 {[%emt 0:06:22]} Qc7 {[%emt 0:06:20]} 42. Ba5 {[%emt 0:05:01]} Qa7 {[%emt 0:01:47]} 43. Qb3 {[%emt 0:04:30]} Qa8 {[%emt 0:04:25]} 44. Bg2 {[%emt 0:00:47]} Qc8 {[%emt 0:00:55]} 45. Bb6 {[%emt 0:01:11]} 1/2-1/2

[Event "DFMMLV 2019"]
[Site "Braunfels"]
[Date "2019.06.21"]
[Round "3.23"]
[White "Pralle, Katharina"]
[Black "Freter, Anke"]
[Result "0-1"]
[ECO "A16"]
[WhiteElo "1971"]
[BlackElo "1856"]
[Annotator "NA"]
[PlyCount "72"]
[EventDate "2019.06.20"]
[EventType "team-tourn"]
[EventCountry "GER"]
[SourceTitle "playchess.com"]
[Source "ChessBase"]
[SourceQuality "1"]
[WhiteTeam "Hessen 1"]
[BlackTeam "Schleswig Holstein"]
[TimeControl "40/5400+30:1800+30"]

1. c4 {[%emt 0:00:00]} Nf6 {[%emt 0:00:00]} 2. Nc3 {[%emt 0:00:00]} g6 {[%emt 0:00:00]} 3. g3 {[%emt 0:00:00]} d5 {[%emt 0:00:56]} 4. cxd5 {[%emt 0:00:00]} Nxd5 {[%emt 0:00:24]} 5. Bg2 {[%emt 0:00:16]} c6 {[%emt 0:01:14]} 6. Nf3 {[%emt 0:02:32]} Bg7 {[%emt 0:00:48]} 7. O-O {[%emt 0:01:57]} O-O {[%emt 0:01:01]} 8. Re1 {[%emt 0:01:53]} e5 {[%emt 0:03:04]} 9. Nxd5 {[%emt 0:14:39]} cxd5 {[%emt 0:00:08]} 10. d3 {[%emt 0:00:36]} Nc6 {[%emt 0:02:02]} 11. Rb1 {[%emt 0:09:25]} h6 {[%emt 0:05:45]} 12. b3 {[%emt 0:02:30]} Be6 {[%emt 0:03:37]} 13. Bb2 {[%emt 0:01:32]} Qd7 {[%emt 0:01:46]} 14. d4 {[%emt 0:05:22]} f6 {[%emt 0:07:16]} 15. dxe5 {[%emt 0:05:43]} fxe5 {[%emt 0:00:25]} 16. Qd2 {[%emt 0:02:25]} Kh7 {[%emt 0:03:29]} 17. Rf1 {[%emt 0:08:09]} d4 {[%emt 0:12:18]} 18. Rbd1 {[%emt 0:12:19]} Rac8 {[%emt 0:06:17]} 19. Nh4 {[%emt 0:05:43]} Bf6 {[%emt 0:06:15]} 20. Bc1 {[%emt 0:02:32]} Qg7 {[%emt 0:01:08]} 21. f4 {[%emt 0:08:58]} exf4 {[%emt 0:02:56]} 22. Qxf4 {[%emt 0:01:09]} Ne7 {[%emt 0:08:19]} 23. Nf3 {[%emt 0:04:45]} Nd5 {[%emt 0:03:43]} 24. Qd6 {[%emt 0:02:30]} Rc6 {[%emt 0:00:29]} 25. Qa3 {[%emt 0:00:24]} Ra6 {[%emt 0:01:28]} 26. Qb2 {[%emt 0:00:36]} Nc3 {[%emt 0:01:45]} 27. a4 {[%emt 0:06:40]} Nxd1 {[%emt 0:03:26]} 28. Rxd1 {[%emt 0:00:03]} Rd8 {[%emt 0:01:05]} 29. Qa3 {[%emt 0:01:13]} Rb6 {[%emt 0:00:57]} 30. Nd2 {[%emt 0:00:11]} d3 {[%emt 0:03:08]} 31. a5 {[%emt 0:00:54]} Rb5 {[%emt 0:02:07]} 32. exd3 {[%emt 0:00:09]} Bd4+ {[%emt 0:02:16]} 33. Kh1 {[%emt 0:00:14]} Bc5 {[%emt 0:00:45]} 34. Qa4 {[%emt 0:00:26]} Rb4 {[%emt 0:01:44]} 35. Qa2 {[%emt 0:00:30]} Rxd3 {[%emt 0:01:02]} 36. Be4 {[%emt 0:00:24]} Rxe4 {[%emt 0:01:11]} 0-1

[Event "DFMMLV 2019"]
[Site "Braunfels"]
[Date "2019.06.21"]
[Round "3.24"]
[White "Braeutigam, Katerina"]
[Black "Heymann-Lobzhanidze, Anna-Luise"]
[Result "1-0"]
[ECO "A10"]
[WhiteElo "1697"]
[BlackElo "1950"]
[Annotator "NA"]
[PlyCount "81"]
[EventDate "2019.06.20"]
[EventType "team-tourn"]
[EventCountry "GER"]
[SourceTitle "playchess.com"]
[Source "ChessBase"]
[SourceQuality "1"]
[WhiteTeam "Schleswig Holstein"]
[BlackTeam "Hessen 1"]
[TimeControl "40/5400+30:1800+30"]

1. c4 {[%emt 0:00:00]} g6 {[%emt 0:00:00]} 2. g3 {[%emt 0:00:00]} Bg7 {[%emt 0:00:00]} 3. Bg2 {[%emt 0:00:01]} d6 {[%emt 0:00:00]} 4. Nc3 {[%emt 0:00:29]} Nf6 {[%emt 0:00:09]} 5. e3 {[%emt 0:00:24]} O-O {[%emt 0:00:25]} 6. Nge2 {[%emt 0:00:09]} c5 {[%emt 0:04:43]} 7. O-O {[%emt 0:00:30]} Nc6 {[%emt 0:00:09]} 8. d4 {[%emt 0:04:55]} Bd7 {[%emt 0:04:11]} 9. d5 {[%emt 0:04:14]} Na5 {[%emt 0:00:40]} 10. b3 {[%emt 0:01:25]} a6 {[%emt 0:01:05]} 11. Qd3 {[%emt 0:07:58]} Rb8 {[%emt 0:01:31]} 12. Rb1 {[%emt 0:04:40]} b5 {[%emt 0:03:53]} 13. Bd2 {[%emt 0:03:13]} b4 {[%emt 0:04:23]} 14. Nd1 {[%emt 0:03:06]} Qc8 {[%emt 0:00:41]} 15. e4 {[%emt 0:03:26]} Bh3 {[%emt 0:01:13]} 16. f4 {[%emt 0:06:13]} Nb7 {[%emt 0:02:32]} 17. Bxh3 {[%emt 0:21:49]} Qxh3 {[%emt 0:00:11]} 18. f5 {[%emt 0:02:51]} Ng4 {[%emt 0:09:46]} 19. Rf2 {[%emt 0:00:16]} Be5 {[%emt 0:08:30]} 20. Rg2 {[%emt 0:04:40]} gxf5 {[%emt 0:10:46]} 21. exf5 {[%emt 0:01:36]} f6 {[%emt 0:00:26]} 22. Qf3 {[%emt 0:07:46]} Nd8 {[%emt 0:04:10]} 23. Kh1 {[%emt 0:01:49]} Nh6 {[%emt 0:06:52]} 24. Ne3 {[%emt 0:03:40]} Nhf7 {[%emt 0:01:14]} 25. Ng4 {[%emt 0:01:59]} Bd4 {[%emt 0:09:01]} 26. Nf4 {[%emt 0:02:50]} Ne5 {[%emt 0:02:19]} 27. Nxe5 {[%emt 0:01:00]} Qxf5 {[%emt 0:00:06]} 28. Qg4+ {[%emt 0:01:35]} Qxg4 {[%emt 0:00:06]} 29. Nxg4 {[%emt 0:00:07]} Nf7 {[%emt 0:00:19]} 30. Ne6 {[%emt 0:01:46]} Rfc8 {[%emt 0:00:30]} 31. Nxd4 {[%emt 0:01:55]} cxd4 {[%emt 0:00:03]} 32. Nh6+ {[%emt 0:00:52]} Nxh6 {[%emt 0:00:50]} 33. Bxh6 {[%emt 0:00:15]} a5 {[%emt 0:01:19]} 34. Rd2 {[%emt 0:01:28]} a4 {[%emt 0:00:11]} 35. Rxd4 {[%emt 0:01:33]} axb3 {[%emt 0:00:13]} 36. axb3 {[%emt 0:00:39]} Ra8 {[%emt 0:00:08]} 37. Rg4+ {[%emt 0:00:31]} Kf7 {[%emt 0:01:28]} 38. Rg7+ {[%emt 0:00:14]} Ke8 {[%emt 0:00:04]} 39. Rxh7 {[%emt 0:00:43]} Kd7 {[%emt 0:00:00]} 40. Bd2 {[%emt 0:00:26]} Rcb8 {[%emt 0:00:08]} 41. Re1 {[%emt 0:30:38]} 1-0

[Event "DFMMLV 2019"]
[Site "Braunfels"]
[Date "2019.06.21"]
[Round "3.25"]
[White "Schmidt, Jessica"]
[Black "Tornay, Haizea"]
[Result "1-0"]
[ECO "E94"]
[WhiteElo "2240"]
[BlackElo "1598"]
[Annotator "NA"]
[PlyCount "89"]
[EventDate "2019.06.20"]
[EventType "team-tourn"]
[EventCountry "GER"]
[SourceTitle "playchess.com"]
[Source "ChessBase"]
[SourceQuality "1"]
[WhiteTeam "Baden"]
[BlackTeam "Hessen 2"]
[TimeControl "40/5400+30:1800+30"]

1. d4 {[%emt 0:00:00]} Nf6 {[%emt 0:00:00]} 2. c4 {[%emt 0:00:00]} g6 {[%emt 0:00:00]} 3. Nc3 {[%emt 0:00:00]} Bg7 {[%emt 0:00:00]} 4. Nf3 {[%emt 0:00:00]} O-O {[%emt 0:00:08]} 5. e4 {[%emt 0:01:07]} d6 {[%emt 0:00:08]} 6. Be2 {[%emt 0:00:06]} e5 {[%emt 0:01:39]} 7. O-O {[%emt 0:01:52]} exd4 {[%emt 0:02:21]} 8. Nxd4 {[%emt 0:00:08]} Nbd7 {[%emt 0:04:25]} 9. Be3 {[%emt 0:01:57]} Nc5 {[%emt 0:05:23]} 10. f3 {[%emt 0:06:53]} a5 {[%emt 0:02:33]} 11. Qd2 {[%emt 0:00:57]} Re8 {[%emt 0:01:00]} 12. Rad1 {[%emt 0:03:46]} Ne6 {[%emt 0:06:01]} 13. Rfe1 {[%emt 0:07:28]} Qe7 {[%emt 0:02:56]} 14. Bf1 {[%emt 0:02:59]} Bd7 {[%emt 0:09:08]} 15. Bf2 {[%emt 0:06:26]} Qf8 {[%emt 0:08:03]} 16. Ncb5 {[%emt 0:08:31]} Bxb5 {[%emt 0:06:27]} 17. Nxb5 {[%emt 0:01:44]} Nd7 {[%emt 0:00:55]} 18. Qc2 {[%emt 0:08:50]} Qe7 {[%emt 0:02:29]} 19. b3 {[%emt 0:07:07]} Qf6 {[%emt 0:13:16]} 20. a3 {[%emt 0:05:42]} Qb2 {[%emt 0:02:20]} 21. Qxb2 Bxb2 {[%emt 0:00:06]} 22. g3 {[%emt 0:03:00]} Re7 {[%emt 0:10:03]} 23. Kg2 {[%emt 0:03:13]} Ndc5 {[%emt 0:03:10]} 24. b4 {[%emt 0:00:46]} axb4 {[%emt 0:01:05]} 25. axb4 {[%emt 0:00:06]} Nd7 {[%emt 0:00:54]} 26. f4 {[%emt 0:03:15]} Ra4 {[%emt 0:02:46]} 27. f5 {[%emt 0:11:07]} Ng7 {[%emt 0:04:54]} 28. fxg6 {[%emt 0:01:56]} hxg6 {[%emt 0:00:33]} 29. Nxc7 {[%emt 0:00:16]} Nf6 {[%emt 0:06:27]} 30. Nd5 {[%emt 0:00:09]} Nxd5 {[%emt 0:00:28]} 31. exd5 {[%emt 0:04:44]} Rd7 {[%emt 0:02:27]} 32. b5 {[%emt 0:04:04]} Nf5 {[%emt 0:02:39]} 33. Re8+ {[%emt 0:02:45]} Kg7 {[%emt 0:00:01]} 34. b6 {[%emt 0:00:14]} Rb4 {[%emt 0:01:01]} 35. Rb1 {[%emt 0:02:26]} Bc3 {[%emt 0:01:07]} 36. Rxb4 {[%emt 0:00:38]} Bxb4 {[%emt 0:00:02]} 37. g4 {[%emt 0:00:13]} Ne7 {[%emt 0:00:56]} 38. Bd4+ {[%emt 0:03:40]} f6 {[%emt 0:00:01]} 39. h4 {[%emt 0:00:44]} Kf7 {[%emt 0:00:31]} 40. Rh8 {[%emt 0:00:12]} Kg7 {[%emt 0:00:14]} 41. Rb8 {[%emt 0:30:18]} Kh7 {[%emt 0:01:12]} 42. Bxf6 {[%emt 0:00:00]} Ng8 {[%emt 0:03:16]} 43. Bd4 {[%emt 0:00:00]} Ba3 {[%emt 0:01:28]} 44. h5 {[%emt 0:00:00]} gxh5 {[%emt 0:00:12]} 45. Bd3+ {[%emt 0:00:00]} 1-0

[Event "DFMMLV 2019"]
[Site "Braunfels"]
[Date "2019.06.21"]
[Round "3.26"]
[White "Krausse, Vanessa"]
[Black "Malachowski, Margrit"]
[Result "0-1"]
[ECO "B13"]
[WhiteElo "1645"]
[BlackElo "2080"]
[Annotator "NA"]
[PlyCount "62"]
[EventDate "2019.06.20"]
[EventType "team-tourn"]
[EventCountry "GER"]
[SourceTitle "playchess.com"]
[Source "ChessBase"]
[SourceQuality "1"]
[WhiteTeam "Hessen 2"]
[BlackTeam "Baden"]
[TimeControl "40/5400+30:1800+30"]

1. e4 {[%emt 0:00:00]} c6 {[%emt 0:00:10]} 2. Nc3 {[%emt 0:01:49]} d5 {[%emt 0:01:06]} 3. exd5 {[%emt 0:00:44]} cxd5 {[%emt 0:00:15]} 4. d4 {[%emt 0:00:29]} Nc6 {[%emt 0:00:47]} 5. Bf4 {[%emt 0:02:47]} a6 {[%emt 0:04:34]} 6. Nf3 {[%emt 0:02:39]} Bg4 {[%emt 0:01:06]} 7. Be2 {[%emt 0:04:09]} Nf6 {[%emt 0:01:18]} 8. h3 {[%emt 0:02:05]} Bh5 {[%emt 0:06:11]} 9. O-O {[%emt 0:06:09]} e6 {[%emt 0:03:29]} 10. a3 {[%emt 0:06:36]} Bd6 {[%emt 0:01:42]} 11. Bxd6 {[%emt 0:06:41]} Qxd6 {[%emt 0:00:09]} 12. Na4 {[%emt 0:15:42]} O-O {[%emt 0:05:47]} 13. c3 {[%emt 0:02:02]} Ne4 {[%emt 0:05:33]} 14. Ne5 {[%emt 0:05:56]} Bxe2 {[%emt 0:00:25]} 15. Qxe2 {[%emt 0:00:22]} Nxe5 {[%emt 0:03:21]} 16. dxe5 {[%emt 0:01:59]} Qc6 {[%emt 0:00:12]} 17. Qg4 {[%emt 0:05:10]} b5 {[%emt 0:01:12]} 18. f3 {[%emt 0:01:28]} Nd2 {[%emt 0:01:22]} 19. Rfd1 {[%emt 0:02:41]} Nb3 {[%emt 0:00:13]} 20. Rab1 {[%emt 0:00:28]} bxa4 {[%emt 0:00:18]} 21. Kh1 {[%emt 0:02:16]} Rac8 {[%emt 0:00:30]} 22. Rd3 {[%emt 0:05:15]} Qc4 {[%emt 0:02:06]} 23. Qxc4 {[%emt 0:01:28]} Rxc4 {[%emt 0:00:12]} 24. Rbd1 {[%emt 0:00:26]} Rb8 {[%emt 0:01:21]} 25. Kg1 {[%emt 0:01:06]} g6 {[%emt 0:03:12]} 26. Kf2 {[%emt 0:00:48]} Na5 {[%emt 0:00:21]} 27. R1d2 {[%emt 0:01:15]} Rc7 {[%emt 0:00:32]} 28. Ke1 {[%emt 0:05:25]} Nc4 {[%emt 0:00:26]} 29. Re2 {[%emt 0:00:32]} Nxb2 {[%emt 0:00:54]} 30. Rde3 {[%emt 0:03:09]} Nc4 {[%emt 0:00:39]} 31. Rd3 {[%emt 0:00:13]} Rb3 {[%emt 0:00:30]} 0-1

[Event "DFMMLV 2019"]
[Site "Braunfels"]
[Date "2019.06.21"]
[Round "3.27"]
[White "Zhang, Fan"]
[Black "Buchholz, Maja"]
[Result "0-1"]
[ECO "A45"]
[WhiteElo "2069"]
[BlackElo "1657"]
[Annotator "NA"]
[PlyCount "63"]
[EventDate "2019.06.20"]
[EventType "team-tourn"]
[EventCountry "GER"]
[SourceTitle "playchess.com"]
[Source "ChessBase"]
[SourceQuality "1"]
[WhiteTeam "Baden"]
[BlackTeam "Hessen 2"]
[TimeControl "40/5400+30:1800+30"]

1. d4 {[%emt 0:00:00]} Nf6 {[%emt 0:00:00]} 2. Bg5 {[%emt 0:00:22]} e6 {[%emt 0:00:34]} 3. e3 {[%emt 0:00:32]} Be7 {[%emt 0:00:26]} 4. Nf3 {[%emt 0:00:09]} d5 {[%emt 0:02:50]} 5. c4 {[%emt 0:02:28]} c6 {[%emt 0:03:44]} 6. Nc3 {[%emt 0:00:09]} O-O {[%emt 0:01:47]} 7. Bd3 {[%emt 0:01:02]} Nbd7 {[%emt 0:01:55]} 8. O-O {[%emt 0:01:13]} Qc7 {[%emt 0:00:40]} 9. cxd5 {[%emt 0:02:50]} exd5 {[%emt 0:01:56]} 10. Rb1 {[%emt 0:01:54]} Re8 {[%emt 0:03:29]} 11. Qc2 {[%emt 0:02:34]} h6 {[%emt 0:01:11]} 12. Bf4 {[%emt 0:01:38]} Qd8 {[%emt 0:04:42]} 13. h3 {[%emt 0:01:06]} Nf8 {[%emt 0:06:10]} 14. b4 {[%emt 0:01:53]} Ne6 {[%emt 0:10:44]} 15. Bh2 {[%emt 0:01:53]} Bd7 {[%emt 0:01:25]} 16. b5 {[%emt 0:04:30]} c5 {[%emt 0:04:40]} 17. dxc5 {[%emt 0:00:49]} Nxc5 {[%emt 0:00:27]} 18. Bf5 {[%emt 0:11:20]} Rc8 {[%emt 0:01:42]} 19. Bxd7 {[%emt 0:01:22]} Ncxd7 {[%emt 0:02:23]} 20. Qb2 {[%emt 0:06:26]} Nb6 {[%emt 0:01:42]} 21. Rbc1 {[%emt 0:03:09]} Ne4 {[%emt 0:02:50]} 22. Ne2 {[%emt 0:02:43]} Nc4 {[%emt 0:03:37]} 23. Qd4 {[%emt 0:10:54]} Bc5 {[%emt 0:02:12]} 24. Qd3 {[%emt 0:01:33]} Ba3 {[%emt 0:06:26]} 25. Rcd1 {[%emt 0:27:14]} Rc5 {[%emt 0:04:23]} 26. Ne5 {[%emt 0:05:29]} Qa5 {[%emt 0:15:00]} 27. Nxc4 {[%emt 0:00:33]} dxc4 {[%emt 0:01:07]} 28. Qd7 {[%emt 0:00:24]} Qxb5 {[%emt 0:00:39]} 29. Qd4 {[%emt 0:01:59]} Bb2 {[%emt 0:01:41]} 30. Qd7 {[%emt 0:00:24]} c3 {[%emt 0:04:16]} 31. Qg4 {[%emt 0:06:27]} c2 {[%emt 0:02:55]} 32. Rd7 {[%emt 0:00:00]} 0-1

[Event "DFMMLV 2019"]
[Site "Braunfels"]
[Date "2019.06.21"]
[Round "3.28"]
[White "Schardt, Madeleine"]
[Black "Schneider, Birgit"]
[Result "1-0"]
[ECO "D00"]
[WhiteElo "1578"]
[BlackElo "1874"]
[Annotator "NA"]
[PlyCount "125"]
[EventDate "2019.06.20"]
[EventType "team-tourn"]
[EventCountry "GER"]
[SourceTitle "playchess.com"]
[Source "ChessBase"]
[SourceQuality "1"]
[WhiteTeam "Hessen 2"]
[BlackTeam "Baden"]
[TimeControl "40/5400+30:1800+30"]

1. d4 {[%emt 0:00:00]} d5 {[%emt 0:00:00]} 2. Bf4 {[%emt 0:00:00]} Nf6 {[%emt 0:00:00]} 3. e3 {[%emt 0:00:00]} e6 {[%emt 0:00:04]} 4. c3 {[%emt 0:00:10]} c5 {[%emt 0:00:48]} 5. Nf3 {[%emt 0:00:49]} Bd6 {[%emt 0:02:47]} 6. Bg3 {[%emt 0:00:05]} Nc6 {[%emt 0:02:50]} 7. Nbd2 {[%emt 0:02:05]} O-O {[%emt 0:05:15]} 8. Bd3 {[%emt 0:01:39]} b6 {[%emt 0:08:36]} 9. Ne5 {[%emt 0:02:37]} Bb7 {[%emt 0:05:46]} 10. f4 {[%emt 0:00:59]} cxd4 {[%emt 0:04:15]} 11. exd4 {[%emt 0:00:34]} Ne7 {[%emt 0:09:53]} 12. Qf3 {[%emt 0:21:29]} Nd7 {[%emt 0:11:40]} 13. Qh5 {[%emt 0:06:12]} g6 {[%emt 0:07:57]} 14. Qf3 {[%emt 0:04:45]} f6 {[%emt 0:06:34]} 15. Ng4 {[%emt 0:02:23]} e5 {[%emt 0:04:27]} 16. Qe3 {[%emt 0:08:03]} e4 {[%emt 0:03:27]} 17. Be2 {[%emt 0:02:08]} Nf5 {[%emt 0:01:09]} 18. Qf2 {[%emt 0:00:59]} Qc7 {[%emt 0:08:12]} 19. Ne3 {[%emt 0:05:42]} Nxe3 {[%emt 0:01:42]} 20. Qxe3 {[%emt 0:00:06]} f5 {[%emt 0:01:24]} 21. h4 {[%emt 0:01:00]} Rf7 {[%emt 0:01:46]} 22. Kf2 {[%emt 0:05:23]} Nf8 {[%emt 0:01:10]} 23. Rag1 {[%emt 0:01:42]} Ne6 {[%emt 0:00:31]} 24. h5 {[%emt 0:01:48]} Nxf4 {[%emt 0:02:16]} 25. hxg6 {[%emt 0:00:55]} Nxg6 {[%emt 0:01:30]} 26. Bxd6 {[%emt 0:00:18]} Qxd6 {[%emt 0:00:20]} 27. g3 {[%emt 0:01:15]} f4 {[%emt 0:02:00]} 28. gxf4 {[%emt 0:00:25]} Qxf4+ {[%emt 0:00:15]} 29. Qxf4 {[%emt 0:00:47]} Rxf4+ {[%emt 0:00:06]} 30. Ke3 {[%emt 0:00:48]} Raf8 {[%emt 0:01:09]} 31. Bh5 {[%emt 0:01:59]} R4f6 {[%emt 0:01:45]} 32. Rh2 {[%emt 0:02:19]} Bc6 {[%emt 0:01:33]} 33. c4 {[%emt 0:01:37]} R8f7 {[%emt 0:01:42]} 34. Rg5 {[%emt 0:05:43]} dxc4 {[%emt 0:01:33]} 35. Nxc4 {[%emt 0:00:16]} Kf8 {[%emt 0:01:04]} 36. Bxg6 {[%emt 0:00:59]} Rxg6 {[%emt 0:01:12]} 37. Rxg6 {[%emt 0:00:20]} hxg6 {[%emt 0:00:01]} 38. Ne5 {[%emt 0:00:17]} Rf6 {[%emt 0:00:47]} 39. Nxc6 {[%emt 0:00:39]} Rxc6 {[%emt 0:00:11]} 40. Kxe4 {[%emt 0:00:33]} Kg7 {[%emt 0:00:50]} 41. Ke5 {[%emt 0:30:32]} Rc1 {[%emt 0:04:41]} 42. d5 {[%emt 0:00:00]} Rd1 {[%emt 0:03:41]} 43. Ke6 {[%emt 0:00:00]} Re1+ {[%emt 0:00:41]} 44. Kd7 {[%emt 0:00:00]} Kf6 {[%emt 0:00:45]} 45. Rf2+ {[%emt 0:00:00]} Ke5 {[%emt 0:01:41]} 46. d6 {[%emt 0:00:00]} g5 {[%emt 0:05:31]} 47. Rg2 {[%emt 0:00:00]} Kf5 {[%emt 0:03:42]} 48. Kd8 {[%emt 0:00:00]} Rd1 {[%emt 0:05:58]} 49. d7 {[%emt 0:00:00]} g4 {[%emt 0:04:43]} 50. Re2 {[%emt 0:00:00]} Kf4 {[%emt 0:00:50]} 51. Ke8 {[%emt 0:00:00]} Kf3 {[%emt 0:00:48]} 52. Re7 {[%emt 0:00:00]} g3 {[%emt 0:01:14]} 53. d8=Q {[%emt 0:00:00]} Rxd8+ {[%emt 0:00:09]} 54. Kxd8 {[%emt 0:00:00]} g2 {[%emt 0:00:09]} 55. Rg7 {[%emt 0:00:00]} Kf2 {[%emt 0:00:12]} 56. Kc7 {[%emt 0:00:00]} g1=Q {[%emt 0:00:29]} 57. Rxg1 {[%emt 0:00:00]} Kxg1 {[%emt 0:00:04]} 58. Kb7 {[%emt 0:00:00]} Kf2 {[%emt 0:00:43]} 59. Kxa7 {[%emt 0:00:00]} b5 {[%emt 0:00:37]} 60. Kb6 {[%emt 0:00:00]} b4 {[%emt 0:00:04]} 61. Kb5 {[%emt 0:00:00]} b3 {[%emt 0:00:04]} 62. axb3 {[%emt 0:00:00]} Ke3 {[%emt 0:00:19]} 63. Kc5 {[%emt 0:00:00]} 1-0

[Event "DFMMLV 2019"]
[Site "Braunfels"]
[Date "2019.06.21"]
[Round "3.29"]
[White "Boettger, Sina Fleur"]
[Black "Schwegler, Jelena"]
[Result "1/2-1/2"]
[ECO "A34"]
[WhiteElo "1744"]
[BlackElo "1511"]
[Annotator "NA"]
[PlyCount "38"]
[EventDate "2019.06.20"]
[EventType "team-tourn"]
[EventCountry "GER"]
[SourceTitle "playchess.com"]
[Source "ChessBase"]
[SourceQuality "1"]
[WhiteTeam "Baden"]
[BlackTeam "Hessen 2"]
[TimeControl "40/5400+30:1800+30"]

1. c4 {[%emt 0:00:00]} c5 {[%emt 0:00:00]} 2. Nc3 {[%emt 0:00:00]} g6 {[%emt 0:00:10]} 3. g3 {[%emt 0:00:00]} Bg7 {[%emt 0:00:12]} 4. Bg2 {[%emt 0:00:00]} Nf6 {[%emt 0:00:06]} 5. e3 {[%emt 0:00:29]} O-O {[%emt 0:03:28]} 6. Nge2 {[%emt 0:00:31]} e6 {[%emt 0:00:51]} 7. d4 {[%emt 0:01:12]} cxd4 {[%emt 0:01:43]} 8. exd4 {[%emt 0:00:08]} d5 {[%emt 0:01:29]} 9. cxd5 {[%emt 0:04:21]} exd5 {[%emt 0:01:32]} 10. O-O {[%emt 0:00:40]} Bf5 {[%emt 0:02:31]} 11. Qb3 {[%emt 0:16:24]} Nc6 {[%emt 0:11:05]} 12. Nxd5 {[%emt 0:17:56]} Nxd5 {[%emt 0:00:42]} 13. Bxd5 {[%emt 0:04:35]} Na5 {[%emt 0:03:11]} 14. Qf3 {[%emt 0:00:12]} Bg4 {[%emt 0:05:10]} 15. Bxf7+ {[%emt 0:03:15]} Rxf7 {[%emt 0:00:14]} 16. Qxg4 {[%emt 0:00:05]} Nc6 {[%emt 0:00:53]} 17. Be3 {[%emt 0:00:39]} Qe7 {[%emt 0:01:17]} 18. Nc3 {[%emt 0:21:09]} Qb4 {[%emt 0:03:02]} 19. Rfd1 {[%emt 0:15:20]} Qxb2 {[%emt 0:05:00]} 1/2-1/2